bitfinex-derivatives/quotes_BTCF0:USTF0_20250720
["timestamp","ask_amount","ask_price","bid_price","bid_amount"]
[1752975500727,1.62188103,118060.0,118050.0,0.385]
[1752975501525,1.62188103,118060.0,118050.0,0.38952]
[1752975502127,1.62188103,118060.0,118050.0,0.41252]
[1752975503026,1.62188103,118060.0,118050.0,0.43566]
[1752975503325,1.62188103,118060.0,118050.0,0.43266]
[1752975503525,1.26308103,118060.0,118050.0,0.43266]
[1752975503726,1.26308103,118060.0,118050.0,0.4511]
[1752975503928,1.62388103,118060.0,118050.0,0.45975232]
[1752975504128,1.49598886,118060.0,118050.0,0.45975232]
[1752975504831,1.49698886,118060.0,118050.0,0.45775232]
[1752975505334,1.49698886,118060.0,118050.0,0.47315232]
[1752975509032,1.13618886,118060.0,118050.0,0.47315232]
[1752975510031,1.49698886,118060.0,118050.0,0.47315232]
[1752975510229,1.62488103,118060.0,118050.0,0.47315232]
[1752975512238,1.26408103,118060.0,118050.0,0.47315232]
[1752975512634,1.62488103,118060.0,118050.0,0.47315232]
[1752975513236,1.26408103,118060.0,118050.0,0.47315232]
[1752975513530,1.62488103,118060.0,118050.0,0.47315232]
[1752975513736,1.26408103,118060.0,118050.0,0.4645]
[1752975513930,1.62488103,118060.0,118050.0,0.4645]
[1752975515136,1.24120452,118060.0,118050.0,0.4645]
[1752975515336,1.62488103,118060.0,118050.0,0.4645]
[1752975517536,1.49698886,118060.0,118050.0,0.4645]
[1752975517731,1.49698886,118060.0,118050.0,0.47303262]
[1752975518138,1.13618886,118060.0,118050.0,0.47303262]
[1752975518332,0.54470886,118060.0,118050.0,0.64236172]
[1752975518637,0.51976886,118060.0,118050.0,0.64236172]
[1752975518837,0.0211796,118060.0,118050.0,1.13105389]
[1752975519140,0.6126996,118060.0,118050.0,1.13105389]
[1752975519332,0.0211796,118060.0,118050.0,1.13105389]
[1752975519637,0.6126996,118060.0,118050.0,1.13105389]
[1752975520435,0.7790136,118060.0,118050.0,1.13105389]
[1752975520736,0.6106996,118060.0,118050.0,1.13105389]
[1752975521138,0.59252,118060.0,118050.0,1.13105389]
[1752975522240,0.59152,118060.0,118050.0,1.13105389]
[1752975522838,0.7608346,118060.0,118050.0,1.13105389]
[1752975523041,0.7607946,118060.0,118050.0,1.13105389]
[1752975523542,0.1693146,118060.0,118050.0,1.13105389]
[1752975523742,0.7607546,118060.0,118050.0,1.13105389]
[1752975524542,0.88864677,118060.0,118050.0,1.13105389]
[1752975524842,0.71933217,118060.0,118050.0,1.13105389]
[1752975525544,0.59144,118060.0,118050.0,1.13105389]
[1752975525842,0.71933217,118060.0,118050.0,1.13105389]
[1752975526246,0.46213537,118080.0,118070.0,0.2031403]
[1752975526446,1.19964493,118080.0,118070.0,0.2538003]
[1752975527646,1.20264493,118080.0,118070.0,0.2538003]
[1752975528642,1.17804493,118080.0,118070.0,0.5738003]
[1752975529145,1.20260493,118080.0,118070.0,0.5738003]
[1752975529347,1.20260493,118080.0,118070.0,0.9346003]
[1752975531245,0.35082546,118080.0,118070.0,1.06249247]
[1752975531450,0.94218546,118080.0,118070.0,1.06249247]
[1752975532050,0.96496546,118080.0,118070.0,1.06249247]
[1752975532449,1.09285763,118080.0,118070.0,1.06249247]
[1752975532648,1.09285763,118080.0,118070.0,0.9346003]
[1752975534352,0.75636956,118080.0,118070.0,1.06249247]
[1752975534852,0.77244956,118080.0,118070.0,1.06249247]
[1752975535146,0.64455739,118080.0,118070.0,1.06249247]
[1752975535348,0.77244956,118080.0,118070.0,1.06249247]
[1752975535850,0.74038956,118080.0,118070.0,1.06249247]
[1752975537054,0.72221217,118080.0,118070.0,1.06249247]
[1752975537551,0.59428,118080.0,118070.0,1.06249247]
[1752975538051,0.72217217,118080.0,118070.0,1.06249247]
[1752975538349,0.59428,118080.0,118070.0,1.06249247]
[1752975538549,0.72217217,118080.0,118070.0,1.06249247]
[1752975539653,0.89145807,118080.0,118070.0,1.06249247]
[1752975540753,0.90753807,118080.0,118070.0,1.06249247]
[1752975542554,0.90753807,118080.0,118070.0,0.9346003]
[1752975542754,0.90753807,118080.0,118070.0,1.06249247]
[1752975543151,0.90753807,118080.0,118070.0,0.9346003]
[1752975543354,0.90753807,118080.0,118070.0,1.06249247]
[1752975543655,0.90753807,118080.0,118070.0,0.9346003]
[1752975543858,1.07438024,118080.0,118070.0,1.06249247]
[1752975545057,0.94648807,118080.0,118070.0,1.06249247]
[1752975545257,1.07438024,118080.0,118070.0,1.06249247]
[1752975547561,0.8185959,118080.0,118070.0,1.06249247]
[1752975547758,0.94648807,118080.0,118070.0,1.06249247]
[1752975549563,0.94648807,118080.0,118070.0,0.9346003]
[1752975549861,1.07438024,118080.0,118070.0,1.06249247]
[1752975550762,0.94648807,118080.0,118070.0,1.06249247]
[1752975553158,0.96467421,118080.0,118070.0,1.06249247]
[1752975556463,0.96467421,118080.0,118070.0,0.9346003]
[1752975556664,0.96467421,118080.0,118070.0,1.06249247]
[1752975560767,0.83678204,118080.0,118070.0,1.06249247]
[1752975560958,0.96467421,118080.0,118070.0,1.06249247]
[1752975576077,0.98879421,118080.0,118070.0,1.06249247]
[1752975579079,0.98879421,118080.0,118070.0,0.70169247]
[1752975579279,0.98879421,118080.0,118070.0,1.06249247]
[1752975584480,0.86090204,118080.0,118070.0,1.06249247]
[1752975584682,0.98879421,118080.0,118070.0,1.06249247]
[1752975584984,0.96467421,118080.0,118070.0,1.06249247]
[1752975585176,0.83678204,118080.0,118070.0,1.06249247]
[1752975585378,0.96467421,118080.0,118070.0,1.06249247]
[1752975585578,0.83678204,118080.0,118070.0,1.06249247]
[1752975585778,0.96467421,118080.0,118070.0,1.06249247]
[1752975587486,1.11668638,118080.0,118070.0,1.06249247]
[1752975587686,0.86090204,118080.0,118070.0,1.06249247]
[1752975587981,1.11668638,118080.0,118070.0,1.06249247]
[1752975588986,0.86090204,118080.0,118070.0,1.06249247]
[1752975589186,1.11668638,118080.0,118070.0,1.06249247]
[1752975589787,0.86090204,118080.0,118070.0,1.06249247]
[1752975590085,0.98879421,118080.0,118070.0,1.06249247]
[1752975590487,0.86090204,118080.0,118070.0,1.06249247]
[1752975590791,0.98879421,118080.0,118070.0,1.06249247]
[1752975593084,1.11668638,118080.0,118070.0,0.5738003]
[1752975593284,1.47748638,118080.0,118070.0,0.5168203]
[1752975593488,1.47748638,118080.0,118070.0,0.4938203]
[1752975593787,1.47748638,118080.0,118070.0,0.5173303]
[1752975593987,1.11668638,118080.0,118070.0,0.5173303]
[1752975594190,1.11668638,118080.0,118070.0,0.5754703]
[1752975598493,1.11668638,118080.0,118070.0,0.5600203]
[1752975598694,1.11668638,118080.0,118070.0,0.5195803]
[1752975598893,1.11668638,118080.0,118070.0,0.5173303]
[1752975599090,1.11668638,118080.0,118070.0,0.4893003]
[1752975599595,1.11668638,118080.0,118070.0,0.5128103]
[1752975599894,1.11668638,118080.0,118070.0,0.5176703]
[1752975601484,1.11668638,118080.0,118070.0,0.5425403]
[1752975601887,0.02118614,118080.0,118070.0,1.78271464]
[1752975602097,0.2680671,118100.0,118090.0,0.2557816]
[1752975602287,0.60671,118100.0,118090.0,0.7228594]
[1752975602487,0.7754873,118100.0,118090.0,1.0836594]
[1752975602688,0.60623,118100.0,118090.0,1.0836594]
[1752975602888,0.42041795,118120.0,118110.0,0.255753]
[1752975602889,0.05649,118120.0,118110.0,0.255753]
[1752975603197,0.94393077,118120.0,118110.0,1.06444517]
[1752975603497,0.96819077,118120.0,118110.0,1.06444517]
[1752975603795,0.96819077,118120.0,118110.0,0.936553]
[1752975603994,0.97219077,118120.0,118110.0,1.06444517]
[1752975604395,0.8442986,118120.0,118110.0,1.06444517]
[1752975604590,1.09708294,118120.0,118110.0,0.68273361]
[1752975604795,1.09708294,118120.0,118110.0,1.05131134]
[1752975604998,1.01167955,118120.0,118110.0,1.05131134]
[1752975605598,0.8412986,118120.0,118110.0,1.05131134]
[1752975605892,1.01167955,118120.0,118110.0,1.05131134]
[1752975606899,1.01067955,118120.0,118110.0,1.05131134]
[1752975607296,0.8402986,118120.0,118110.0,1.05131134]
[1752975607497,1.01067955,118120.0,118110.0,1.05131134]
[1752975609802,1.01167955,118120.0,118110.0,1.05131134]
[1752975614203,1.02975615,118120.0,118110.0,1.05131134]
[1752975616904,0.8593752,118120.0,118110.0,1.05131134]
[1752975617105,1.02975615,118120.0,118110.0,1.05131134]
[1752975619412,0.8593752,118120.0,118110.0,1.05131134]
[1752975619600,1.02975615,118120.0,118110.0,1.05131134]
[1752975620112,0.6901466,118120.0,118110.0,1.05131134]
[1752975620318,1.02975645,118120.0,118110.0,1.05131134]
[1752975621209,0.8593755,118120.0,118110.0,1.05131134]
[1752975621407,1.02975645,118120.0,118110.0,1.05131134]
[1752975625813,0.8593755,118120.0,118110.0,1.05131134]
[1752975626514,0.8350755,118120.0,118110.0,1.05131134]
[1752975626915,0.37256107,118120.0,118110.0,1.17907691]
[1752975627216,0.96240107,118120.0,118110.0,1.17907691]
[1752975628411,0.0354666,118120.0,118110.0,1.19756485]
[1752975628606,0.41752327,118140.0,118130.0,0.2021746]
[1752975628808,1.04962607,118140.0,118130.0,0.38199017]
[1752975629006,0.9218605,118140.0,118130.0,0.38199017]
[1752975629206,1.04962607,118140.0,118130.0,0.38199017]
[1752975629818,1.05362607,118140.0,118130.0,0.38199017]
[1752975630416,1.18139164,118140.0,118130.0,0.38199017]
[1752975630616,1.05362607,118140.0,118130.0,0.38199017]
[1752975631217,1.05662607,118140.0,118130.0,0.38199017]
[1752975631517,1.18439164,118140.0,118130.0,0.38199017]
[1752975631719,1.18439164,118140.0,118130.0,0.67199017]
[1752975632117,1.18439164,118140.0,118130.0,0.5442246]
[1752975632323,1.18439164,118140.0,118130.0,0.38199017]
[1752975632918,1.18439164,118140.0,118130.0,0.6150246]
[1752975633121,1.18439164,118140.0,118130.0,0.74279017]
[1752975633626,1.18439164,118140.0,118130.0,0.6150246]
[1752975637029,0.9288605,118140.0,118130.0,0.6150246]
[1752975637230,1.18439164,118140.0,118130.0,0.6150246]
[1752975638436,1.18439164,118140.0,118130.0,0.2542246]
[1752975640534,1.2028709,118140.0,118130.0,0.2542246]
[1752975640730,0.1692147,118130.0,118120.0,0.5999205]
[1752975640931,0.39370953,118130.0,118120.0,0.9673405]
[1752975641233,0.98322953,118130.0,118120.0,1.09510607]
[1752975641532,0.98322953,118130.0,118120.0,0.73430607]
[1752975641731,0.98322953,118130.0,118120.0,1.09510607]
[1752975642033,1.4717951,118130.0,118120.0,0.39501]
[1752975642434,1.4737951,118130.0,118120.0,0.39501]
[1752975642634,1.4737951,118130.0,118120.0,0.5246591]
[1752975643027,1.4767951,118130.0,118120.0,0.5246591]
[1752975644437,1.4767951,118130.0,118120.0,0.5091091]
[1752975644638,1.4767951,118130.0,118120.0,0.33759]
[1752975645637,1.4767951,118130.0,118120.0,0.31467]
[1752975645831,1.4767951,118130.0,118120.0,0.31]
[1752975646634,1.4767951,118130.0,118120.0,0.4792291]
[1752975646940,1.4767951,118130.0,118120.0,0.31]
[1752975647239,1.4767951,118130.0,118120.0,0.31467]
[1752975647736,0.247479,118120.0,118110.0,0.01324773]
[1752975647932,0.89972506,118120.0,118110.0,0.01324773]
[1752975648239,0.89972506,118120.0,118110.0,0.00857773]
[1752975648441,0.2004734,118110.0,118100.0,0.3388897]
[1752975648741,0.96469897,118110.0,118100.0,0.6688897]
[1752975650734,0.96469897,118110.0,118100.0,0.6537697]
[1752975651042,1.0073414,118110.0,118100.0,0.6537697]
[1752975651340,1.0073414,118110.0,118100.0,0.73824953]
[1752975651534,1.0083414,118110.0,118100.0,0.73824953]
[1752975652441,1.0083414,118110.0,118100.0,0.74656894]
[1752975652741,1.0093414,118110.0,118100.0,0.74656894]
[1752975653043,1.02785253,118110.0,118100.0,0.74656894]
[1752975653540,1.02885253,118110.0,118100.0,0.74656894]
[1752975653740,1.03185253,118110.0,118100.0,0.74656894]
[1752975654446,0.86144453,118110.0,118100.0,1.10736894]
[1752975656945,0.8429334,118110.0,118100.0,1.10736894]
[1752975657145,0.8196934,118110.0,118100.0,1.27777694]
[1752975657345,0.7959134,118110.0,118100.0,1.27777694]
[1752975658751,0.7957534,118110.0,118100.0,1.27777694]
[1752975658940,0.8193234,118110.0,118100.0,1.27777694]
[1752975659248,0.8193234,118110.0,118100.0,1.10736894]
[1752975659846,0.8173234,118110.0,118100.0,1.10736894]
[1752975660248,0.8143234,118110.0,118100.0,1.10736894]
[1752975665050,1.38813592,118110.0,118100.0,0.64620694]
[1752975665439,1.38813592,118110.0,118100.0,0.66194694]
[1752975666848,1.38813592,118110.0,118100.0,0.64620694]
[1752975667650,1.02733592,118110.0,118100.0,0.64620694]
[1752975668250,1.38813592,118110.0,118100.0,0.64620694]
[1752975668452,1.02733592,118110.0,118100.0,0.64620694]
[1752975668651,1.38813592,118110.0,118100.0,0.64620694]
[1752975669354,1.38813592,118110.0,118100.0,0.66194694]
[1752975670152,1.02733592,118110.0,118100.0,0.66194694]
[1752975670448,1.38813592,118110.0,118100.0,0.66194694]
[1752975672962,1.34553981,118110.0,118100.0,0.66194694]
[1752975678067,0.98473981,118110.0,118100.0,0.66194694]
[1752975678261,0.85692792,118110.0,118100.0,0.66194694]
[1752975678462,0.98473981,118110.0,118100.0,0.66194694]
[1752975682869,0.85692792,118110.0,118100.0,0.66194694]
[1752975683069,0.98473981,118110.0,118100.0,0.66194694]
[1752975686871,0.85692792,118110.0,118100.0,0.66194694]
[1752975687072,0.98473981,118110.0,118100.0,0.78975883]
[1752975687472,0.98473981,118110.0,118100.0,0.66194694]
[1752975690668,0.98473981,118110.0,118100.0,0.78975883]
[1752975691274,0.85692792,118110.0,118100.0,0.78975883]
[1752975691474,0.98473981,118110.0,118100.0,0.78975883]
[1752975691875,0.98473981,118110.0,118100.0,0.66194694]
[1752975692082,0.98473981,118110.0,118100.0,0.78975883]
[1752975692676,0.98473981,118110.0,118100.0,1.15055883]
[1752975694780,0.98473981,118110.0,118100.0,0.78975883]
[1752975701676,0.98477011,118110.0,118100.0,0.78975883]
[1752975702983,0.98477011,118110.0,118100.0,1.15055883]
[1752975703682,0.98477011,118110.0,118100.0,0.78975883]
[1752975703882,0.98477011,118110.0,118100.0,1.15055883]
[1752975704777,0.98477011,118110.0,118100.0,0.78975883]
[1752975705085,0.98477011,118110.0,118100.0,0.66194694]
[1752975705284,0.98477011,118110.0,118100.0,1.02274694]
[1752975705982,0.98477011,118110.0,118100.0,0.66194694]
[1752975708185,0.98477011,118110.0,118100.0,1.02274694]
[1752975708481,0.98477011,118110.0,118100.0,1.15055883]
[1752975709084,0.98476991,118110.0,118100.0,1.15055883]
[1752975709390,0.98476991,118110.0,118100.0,0.78975883]
[1752975709586,0.98476991,118110.0,118100.0,1.15055883]
[1752975709785,0.96067991,118110.0,118100.0,1.15055883]
[1752975710187,0.37139991,118110.0,118100.0,1.15055883]
[1752975710383,0.01954462,118110.0,118100.0,1.27837072]
[1752975710587,0.60790462,118110.0,118100.0,1.27837072]
[1752975711899,0.60790462,118110.0,118100.0,1.57007072]
[1752975712193,0.01954462,118110.0,118100.0,2.15839072]
[1752975712491,0.01954462,118110.0,118100.0,2.51919072]
[1752975713488,0.01954462,118110.0,118100.0,2.52019072]
[1752975713993,0.01854462,118110.0,118100.0,2.52219072]
[1752975716188,0.60575566,118120.0,118110.0,0.1853233]
[1752975716388,0.6242701,118120.0,118110.0,1.07457643]
[1752975716583,0.0359501,118120.0,118110.0,1.07457643]
[1752975717094,0.01743566,118120.0,118110.0,1.07457643]
[1752975717693,0.01743566,118120.0,118110.0,1.36627643]
[1752975718792,0.18666466,118120.0,118110.0,1.36627643]
[1752975722297,0.31447655,118120.0,118110.0,1.36627643]
[1752975723194,0.18666466,118120.0,118110.0,1.36627643]
[1752975724298,0.01743566,118120.0,118110.0,1.36627643]
[1752975725392,0.18666466,118120.0,118110.0,1.36627643]
[1752975725699,0.01743566,118120.0,118110.0,1.36627643]
[1752975726497,0.14524755,118120.0,118110.0,1.36627643]
[1752975727799,0.12781189,118120.0,118110.0,1.36627643]
[1752975728099,1.02369549,118130.0,118120.0,0.256719]
[1752975728294,1.04268554,118130.0,118120.0,1.10533089]
[1752975728798,1.00038024,118130.0,118120.0,1.10533089]
[1752975729703,1.00138024,118130.0,118120.0,1.10533089]
[1752975735400,0.87356835,118130.0,118120.0,1.10533089]
[1752975735604,1.00138024,118130.0,118120.0,1.10533089]
[1752975737505,0.87356835,118130.0,118120.0,1.10533089]
[1752975737702,1.00086024,118130.0,118120.0,1.10533089]
[1752975738708,0.87304835,118130.0,118120.0,1.10533089]
[1752975738904,1.00086024,118130.0,118120.0,1.10533089]
[1752975742415,0.41314024,118130.0,118120.0,1.10533089]
[1752975742809,1.00074024,118130.0,118120.0,1.10533089]
[1752975743309,0.37083594,118130.0,118120.0,1.10533089]
[1752975743612,0.95839594,118130.0,118120.0,1.10533089]
[1752975745116,0.01999005,118130.0,118120.0,1.23314278]
[1752975745416,0.60751005,118130.0,118120.0,1.23314278]
[1752975745616,0.60751005,118130.0,118120.0,1.10533089]
[1752975746718,0.75107194,118130.0,118120.0,1.10533089]
[1752975747016,0.78963194,118130.0,118120.0,1.10533089]
[1752975749015,0.95884684,118130.0,118120.0,1.10533089]
[1752975749217,0.83103495,118130.0,118120.0,1.10533089]
[1752975749417,0.78963194,118130.0,118120.0,1.10533089]
[1752975751722,0.60739005,118130.0,118120.0,1.23314278]
[1752975752124,0.05431,118150.0,118140.0,0.2541406]
[1752975752321,0.01588,118150.0,118140.0,1.21056438]
[1752975752623,0.60328,118150.0,118140.0,1.21056438]
[1752975752822,0.61903,118150.0,118140.0,1.21056438]
[1752975753225,0.62099,118150.0,118140.0,1.21056438]
[1752975753425,0.64367,118150.0,118140.0,1.21056438]
[1752975753822,0.64167,118150.0,118140.0,1.21056438]
[1752975754028,0.64367,118150.0,118140.0,1.21056438]
[1752975754928,0.64267,118150.0,118140.0,1.21056438]
[1752975755928,0.64267,118150.0,118140.0,1.79784438]
[1752975756730,0.77048189,118150.0,118140.0,1.79784438]
[1752975756931,0.64267,118150.0,118140.0,1.79784438]
[1752975757933,0.8118563,118150.0,118140.0,1.21056438]
[1752975758133,0.93966819,118150.0,118140.0,1.08275249]
[1752975758333,0.96393819,118150.0,118140.0,1.08275249]
[1752975759232,0.8361263,118150.0,118140.0,1.08275249]
[1752975759431,0.96393819,118150.0,118140.0,1.08275249]
[1752975761934,0.96393819,118150.0,118140.0,0.9549406]
[1752975762137,0.96393819,118150.0,118140.0,1.37445249]
[1752975763634,0.96393819,118150.0,118140.0,1.01365249]
[1752975764032,0.98332749,118150.0,118140.0,1.01365249]
[1752975764535,0.98332749,118150.0,118140.0,1.37445249]
[1752975765338,0.98332749,118150.0,118140.0,1.01365249]
[1752975765525,0.98332749,118150.0,118140.0,1.37445249]
[1752975767140,0.98332749,118150.0,118140.0,1.2466406]
[1752975767338,0.98332749,118150.0,118140.0,1.37445249]
[1752975768136,0.98332749,118150.0,118140.0,1.08275249]
[1752975768435,0.98332749,118150.0,118140.0,0.9549406]
[1752975768636,0.98332749,118150.0,118140.0,1.08275249]
[1752975770536,0.98332749,118150.0,118140.0,0.3608]
[1752975770736,0.98332749,118150.0,118110.0,0.24151384]
[1752975770737,0.04814,118120.0,118110.0,0.24151384]
[1752975771038,1.47155233,118120.0,118110.0,0.04844124]
[1752975771639,1.47155233,118120.0,118110.0,0.21768504]
[1752975771839,1.47155233,118120.0,118110.0,0.04844124]
[1752975772040,1.47155233,118120.0,118110.0,0.21768504]
[1752975772342,1.47155233,118120.0,118110.0,0.04844124]
[1752975772845,1.47155233,118120.0,118110.0,0.04944124]
[1752975773046,1.38633465,118120.0,118110.0,0.04944124]
[1752975773640,1.38833465,118120.0,118110.0,0.04844124]
[1752975773840,1.39033465,118120.0,118110.0,0.13844124]
[1752975775341,1.39033465,118120.0,118110.0,0.30768514]
[1752975775542,1.45682532,118120.0,118110.0,0.30768514]
[1752975775742,1.45682532,118120.0,118110.0,0.13844124]
[1752975777643,0.1692582,118100.0,118090.0,0.05551]
[1752975777848,1.38632335,118100.0,118090.0,0.37941911]
[1752975778037,1.38632335,118100.0,118090.0,0.24869161]
[1752975778237,1.38632335,118100.0,118090.0,0.26391161]
[1752975780947,1.38632335,118100.0,118090.0,0.28391161]
[1752975780948,1.0061243,118100.0,118090.0,0.28391161]
[1752975782248,0.8357182,118100.0,118090.0,0.28391161]
[1752975782448,0.9822343,118100.0,118090.0,0.28391161]
[1752975782644,0.3953543,118100.0,118090.0,0.83471161]
[1752975782846,0.9821943,118100.0,118090.0,0.83471161]
[1752975783148,1.0060843,118100.0,118090.0,0.83471161]
[1752975784643,1.3668843,118100.0,118090.0,0.43485161]
[1752975784844,1.38619159,118100.0,118090.0,0.43485161]
[1752975785043,1.38619159,118100.0,118090.0,0.45869161]
[1752975785344,1.38619159,118100.0,118090.0,0.47391161]
[1752975786650,1.3668843,118100.0,118090.0,0.47391161]
[1752975787152,1.3861862,118100.0,118090.0,0.01306911]
[1752975787341,1.3861862,118100.0,118090.0,0.18234161]
[1752975787541,1.3861862,118100.0,118090.0,0.20682161]
[1752975788148,1.3861862,118100.0,118090.0,0.24869161]
[1752975789446,1.3861862,118100.0,118090.0,0.26391161]
[1752975792851,1.40351622,118100.0,118090.0,0.26391161]
[1752975798453,1.40351622,118100.0,118090.0,0.03754911]
[1752975798951,1.40351622,118100.0,118090.0,0.24869161]
[1752975799150,1.40351622,118100.0,118090.0,0.26391161]
[1752975800959,1.23311012,118100.0,118090.0,0.26391161]
[1752975801159,1.40351622,118100.0,118090.0,0.26391161]
[1752975802159,1.04271622,118100.0,118090.0,0.26391161]
[1752975802457,1.04271622,118100.0,118090.0,0.62471161]
[1752975802759,0.45587622,118100.0,118090.0,0.62471161]
[1752975802959,1.04247622,118100.0,118090.0,0.62471161]
[1752975803461,0.06807192,118100.0,118090.0,1.12511771]
[1752975803656,0.82389012,118100.0,118090.0,1.12511771]
[1752975804054,1.01716622,118100.0,118090.0,0.95471161]
[1752975804258,1.01726018,118100.0,118090.0,0.95471161]
[1752975804461,1.03991018,118100.0,118090.0,0.95471161]
[1752975805961,1.03991018,118100.0,118090.0,0.95571161]
[1752975806462,1.03991018,118100.0,118090.0,0.95471161]
[1752975806861,0.86950408,118100.0,118090.0,0.95471161]
[1752975807061,1.03991018,118100.0,118090.0,0.95471161]
[1752975809870,0.84685408,118100.0,118090.0,0.95471161]
[1752975810167,1.01726018,118100.0,118090.0,0.95471161]
[1752975811168,0.84685408,118100.0,118090.0,0.95471161]
[1752975815470,0.67759588,118100.0,118090.0,0.95471161]
[1752975815670,0.84685408,118100.0,118090.0,0.95471161]
[1752975818575,0.84685408,118100.0,118090.0,1.12511771]
[1752975818775,0.84685408,118100.0,118090.0,0.95471161]
[1752975819071,0.84685408,118100.0,118090.0,1.12511771]
[1752975822076,0.67759588,118100.0,118090.0,1.12511771]
[1752975822983,0.84685408,118100.0,118090.0,1.12511771]
[1752975823781,0.84685408,118100.0,118090.0,1.12611771]
[1752975824783,0.82398408,118100.0,118090.0,1.12611771]
[1752975825174,0.84685408,118100.0,118090.0,0.95571161]
[1752975825480,0.84685408,118100.0,118090.0,1.12611771]
[1752975826983,0.97465932,118100.0,118090.0,1.08351685]
[1752975827884,0.84685408,118100.0,118090.0,1.08351685]
[1752975828086,0.97465932,118100.0,118090.0,1.08351685]
[1752975830284,0.84685408,118100.0,118090.0,1.08351685]
[1752975830485,0.97465932,118100.0,118090.0,1.08351685]
[1752975832288,0.80540112,118100.0,118090.0,1.08351685]
[1752975832488,0.78253112,118100.0,118090.0,1.08351685]
[1752975833088,0.78253112,118100.0,118090.0,1.37521685]
[1752975833889,0.06816588,118100.0,118090.0,1.37521685]
[1752975834187,0.03672588,118100.0,118090.0,1.21132209]
[1752975834884,0.01733002,118100.0,118090.0,1.50302209]
[1752975835389,1.04674224,118120.0,118110.0,0.2032938]
[1752975835589,1.06614582,118120.0,118110.0,1.10114869]
[1752975836886,1.06714582,118120.0,118110.0,1.10114869]
[1752975837689,1.06814582,118120.0,118110.0,1.10114869]
[1752975837992,1.02583502,118120.0,118110.0,1.10114869]
[1752975840687,1.15364026,118120.0,118110.0,1.10114869]
[1752975840882,1.15364026,118120.0,118110.0,0.97334345]
[1752975841089,1.15364026,118120.0,118110.0,1.10114869]
[1752975842291,1.02583502,118120.0,118110.0,1.10114869]
[1752975842493,0.89802978,118120.0,118110.0,1.10114869]
[1752975842694,0.85572188,118120.0,118110.0,1.10114869]
[1752975842991,0.98352712,118120.0,118110.0,0.97334345]
[1752975843293,0.39756712,118120.0,118110.0,0.97334345]
[1752975843493,0.98336712,118120.0,118110.0,1.10114869]
[1752975844794,0.98236712,118120.0,118110.0,1.10114869]
[1752975846096,0.98136712,118120.0,118110.0,1.10114869]
[1752975849999,0.98136712,118120.0,118110.0,0.97334345]
[1752975850199,0.98136712,118120.0,118110.0,1.10114869]
[1752975850599,1.10917236,118120.0,118110.0,1.10114869]
[1752975851198,0.98136712,118120.0,118110.0,1.10114869]
[1752975851399,1.10917236,118120.0,118110.0,1.10114869]
[1752975854502,0.98136712,118120.0,118110.0,1.10114869]
[1752975855606,0.85356188,118120.0,118110.0,1.10114869]
[1752975855806,0.98136712,118120.0,118110.0,0.97334345]
[1752975856004,0.98136712,118120.0,118110.0,1.10114869]
[1752975856808,0.98136712,118120.0,118110.0,0.97334345]
[1752975857313,0.85356188,118120.0,118110.0,1.10114869]
[1752975857612,0.98136712,118120.0,118110.0,1.10114869]
[1752975859218,0.85356188,118120.0,118110.0,1.10114869]
[1752975859416,0.98136712,118120.0,118110.0,1.10114869]
[1752975860815,0.85356188,118120.0,118110.0,1.10114869]
[1752975861016,0.98136712,118120.0,118110.0,1.10114869]
[1752975865616,1.10917236,118120.0,118110.0,1.10114869]
[1752975865816,0.85356188,118120.0,118110.0,1.10114869]
[1752975866116,1.10917236,118120.0,118110.0,1.10114869]
[1752975868123,1.10917236,118120.0,118110.0,0.97334345]
[1752975868323,1.10917236,118120.0,118110.0,0.61254345]
[1752975868717,1.10917236,118120.0,118110.0,0.57301345]
[1752975868915,1.10917236,118120.0,118110.0,0.55532345]
[1752975869821,1.11017236,118120.0,118110.0,0.55532345]
[1752975870214,1.11117236,118120.0,118110.0,0.55532345]
[1752975870416,1.47197236,118120.0,118110.0,0.55532345]
[1752975871210,1.47197236,118120.0,118110.0,0.38607965]
[1752975871414,1.47197236,118120.0,118110.0,0.36316965]
[1752975871615,1.47197236,118120.0,118110.0,0.35851965]
[1752975873821,1.47197236,118120.0,118110.0,0.34]
[1752975874130,0.2500581,118100.0,118090.0,0.56434861]
[1752975874315,1.47139216,118100.0,118090.0,0.56434861]
[1752975874514,1.11059216,118100.0,118090.0,0.27264861]
[1752975874721,1.11059216,118100.0,118090.0,0.29093861]
[1752975874919,1.11059216,118100.0,118090.0,0.30647861]
[1752975875425,1.11059216,118100.0,118090.0,0.30747861]
[1752975876419,1.11059216,118100.0,118090.0,0.30647861]
[1752975882334,0.85498168,118100.0,118090.0,0.30647861]
[1752975882534,1.11059216,118100.0,118090.0,0.30647861]
[1752975882834,0.85498168,118100.0,118090.0,0.30647861]
[1752975883134,1.11059216,118100.0,118090.0,0.30647861]
[1752975883534,1.11059216,118100.0,118090.0,0.43428385]
[1752975883834,1.11359216,118100.0,118090.0,0.43428385]
[1752975884732,0.98578692,118100.0,118090.0,0.43428385]
[1752975885239,0.98578692,118100.0,118090.0,0.80428385]
[1752975885534,0.98578692,118100.0,118090.0,1.16508385]
[1752975885723,1.11359216,118100.0,118090.0,1.16508385]
[1752975886931,0.85798168,118100.0,118090.0,1.03727861]
[1752975887233,0.85798168,118100.0,118090.0,1.16508385]
[1752975887234,1.11359216,118100.0,118090.0,1.16508385]
[1752975887433,0.98578692,118100.0,118090.0,1.16508385]
[1752975887634,1.11359216,118100.0,118090.0,1.16508385]
[1752975890835,1.11359216,118100.0,118090.0,0.79508385]
[1752975891034,1.11359216,118100.0,118090.0,0.66727861]
[1752975894342,0.85798168,118100.0,118090.0,0.66727861]
[1752975894533,1.11359216,118100.0,118090.0,0.66727861]
[1752975901652,0.60688358,118100.0,118090.0,0.79508385]
[1752975901950,0.01940358,118100.0,118090.0,1.86100909]
[1752975902139,0.01940358,118100.0,118090.0,1.73320385]
[1752975902340,0.01940358,118100.0,118090.0,1.86100909]
[1752975902549,0.01940358,118100.0,118090.0,1.60539861]
[1752975902849,0.01940358,118100.0,118090.0,1.73320385]
[1752975903453,0.01940358,118100.0,118090.0,2.09400385]
[1752975904150,0.01940358,118100.0,118090.0,2.38570385]
[1752975907254,0.12780524,118110.0,118100.0,0.2567977]
[1752975907557,0.14715713,118110.0,118100.0,1.20320818]
[1752975908457,0.14815713,118110.0,118100.0,1.20320818]
[1752975908756,0.14915713,118110.0,118100.0,1.20320818]
[1752975908945,0.16470713,118110.0,118100.0,1.20320818]
[1752975910155,0.16470713,118110.0,118100.0,1.07540294]
[1752975910357,0.16470713,118110.0,118100.0,0.9475977]
[1752975910557,0.16470713,118110.0,118100.0,1.07540294]
[1752975916360,0.03690189,118110.0,118100.0,1.07540294]
[1752975916561,0.16470713,118110.0,118100.0,1.07540294]
[1752975917261,0.16470713,118110.0,118100.0,1.20320818]
[1752975917664,0.16470713,118110.0,118100.0,1.07540294]
[1752975918163,0.20355713,118110.0,118100.0,1.07540294]
[1752975921369,0.37280063,118110.0,118100.0,1.07540294]
[1752975921769,0.20355713,118110.0,118100.0,1.07540294]
[1752975922062,0.02135189,118110.0,118100.0,1.49490818]
[1752975923066,0.002,118110.0,118100.0,1.49490818]
[1752975923564,0.001,118110.0,118100.0,1.49490818]